fUST/lending_fUST_20250627
["ID","MTS","AMOUNT","RATE_DAILY","PERIOD"]
[368146527,1751038249352,-460.0,0.00019726,2]
[368146528,1751038249362,-3475.96140734,0.00019763,2]
[368146529,1751038249371,-500.0,0.00019774,2]
[368146530,1751038249382,-500.0,0.00019774,2]
[368146531,1751038249392,-13459.18367538,0.000198,2]
[368146532,1751038249404,-4779.06240811,0.000199,2]
[368146533,1751038249414,-733.99,0.00019999,2]
[368146534,1751038249423,-733.99,0.00019999,2]
[368146535,1751038249433,-460.0,0.0002,2]
[368146536,1751038249443,-462.2,0.0002,2]
[368146537,1751038249452,-460.0,0.0002,2]
[368146538,1751038249461,-460.0,0.0002,2]
[368146539,1751038249470,-460.0,0.0002,2]
[368146540,1751038249479,-460.0,0.0002,2]
[368146541,1751038249488,-409.9871153,0.0002,2]
[368146542,1751038249497,-460.0,0.0002,2]
[368146543,1751038249507,-460.0,0.0002,2]
[368146544,1751038249516,-460.0,0.0002,2]
[368146545,1751038249525,-460.0,0.0002,2]
[368146546,1751038249535,-460.0,0.0002,2]
[368146547,1751038249544,-460.0,0.0002,2]
[368146548,1751038249555,-460.0,0.0002,2]
[368146549,1751038249564,-460.0,0.0002,2]
[368146550,1751038249573,-460.0,0.0002,2]
[368146551,1751038249583,-274.57,0.0002,2]
[368146552,1751038249592,-487.3,0.0002,2]
[368146553,1751038249601,-460.0,0.0002,2]
[368146554,1751038249610,-460.0,0.0002,2]
[368146555,1751038249619,-404.67375038,0.0002,2]
[368146556,1751038249629,-460.0,0.0002,2]
[368146557,1751038249639,-460.0,0.0002,2]
[368146558,1751038249648,-460.0,0.0002,2]
[368146559,1751038249657,-460.0,0.0002,2]
[368146560,1751038249667,-460.0,0.0002,2]
[368146561,1751038249677,-460.0,0.0002,2]
[368146562,1751038249686,-460.0,0.0002,2]
[368146563,1751038249696,-460.0,0.0002,2]
[368146564,1751038249706,-460.0,0.0002,2]
[368146565,1751038249715,-460.0,0.0002,2]
[368146566,1751038249725,-460.0,0.0002,2]
[368146567,1751038249734,-460.0,0.0002,2]
[368146568,1751038249744,-593.62636083,0.0002,2]
[368146569,1751038249755,-460.0,0.0002,2]
[368146570,1751038249764,-460.0,0.0002,2]
[368146571,1751038249774,-460.0,0.0002,2]
[368146572,1751038249782,-460.0,0.0002,2]
[368146573,1751038249791,-543.45,0.0002,2]
[368146574,1751038249802,-627.13,0.0002,2]
[368146575,1751038249812,-460.0,0.0002,2]
[368146576,1751038249821,-460.0,0.0002,2]
[368146577,1751038249831,-460.0,0.0002,2]
[368146578,1751038249840,-493.07,0.0002,2]
[368146579,1751038249849,-460.0,0.0002,2]
[368146580,1751038249858,-460.0,0.0002,2]
[368146581,1751038249868,-460.0,0.0002,2]
[368146582,1751038249877,-460.0,0.0002,2]
[368146583,1751038249887,-460.0,0.0002,2]
[368146584,1751038249896,-460.0,0.0002,2]
[368146585,1751038249905,-460.0,0.0002,2]
[368146586,1751038249914,-460.0,0.0002,2]
[368146587,1751038249924,-460.0,0.0002,2]
[368146588,1751038249933,-460.0,0.0002,2]
[368146589,1751038249944,-1636.33,0.0002,2]
[368146590,1751038249953,-460.0,0.0002,2]
[368146591,1751038249963,-460.0,0.0002,2]
[368146592,1751038249972,-460.0,0.0002,2]
[368146593,1751038249981,-460.0,0.0002,2]
[368146594,1751038249991,-977.32,0.0002,2]
[368146595,1751038250000,-460.0,0.0002,2]
[368146596,1751038250011,-460.0,0.0002,2]
[368146597,1751038250020,-460.0,0.0002,2]
[368146598,1751038250029,-460.0,0.0002,2]
[368146599,1751038250039,-5210.38,0.0002,2]
[368146600,1751038250048,-958.14,0.0002,2]
[368146601,1751038250058,-524.72,0.0002,2]
[368146602,1751038250067,-460.0,0.0002,2]
[368146603,1751038250076,-3966.91,0.0002,2]
[368146604,1751038250089,-1083.49,0.0002,2]
[368146605,1751038250200,-1615.3,0.0002,2]
[368146606,1751038250210,-460.0,0.0002,2]
[368146607,1751038250219,-460.0,0.0002,2]
[368146608,1751038250228,-460.0,0.0002,2]
[368146609,1751038250237,-460.0,0.0002,2]
[368146610,1751038250246,-460.0,0.0002,2]
[368146611,1751038250255,-460.0,0.0002,2]
[368146612,1751038250264,-460.0,0.0002,2]
[368146613,1751038250273,-821.81,0.0002,2]
[368146614,1751038250282,-1051.43,0.0002,2]
[368146615,1751038250291,-460.0,0.0002,2]
[368146616,1751038250300,-460.0,0.0002,2]
[368146617,1751038250310,-460.0,0.0002,2]
[368146618,1751038250319,-460.0,0.0002,2]
[368146619,1751038250328,-460.0,0.0002,2]
[368146620,1751038250338,-493.34,0.0002,2]
[368146621,1751038250347,-460.0,0.0002,2]
[368146622,1751038250356,-568.14,0.0002,2]
[368146623,1751038250366,-460.0,0.0002,2]
[368146624,1751038250375,-5570.99,0.0002,2]
[368146625,1751038250384,-460.0,0.0002,2]
[368146626,1751038250393,-436.40730184,0.0002,2]
[368146627,1751038250403,-460.0,0.0002,2]
[368146628,1751038250413,-1168.98,0.0002,2]
[368146629,1751038250423,-353.69701137,0.0002,2]
[368146630,1751038250433,-460.0,0.0002,2]
[368146631,1751038250443,-5551.03,0.0002,2]
[368146632,1751038250453,-460.0,0.0002,2]
[368146633,1751038250463,-1027.11,0.0002,2]
[368146634,1751038250472,-460.0,0.0002,2]
[368146635,1751038250481,-460.0,0.0002,2]
[368146636,1751038250490,-189.26745505,0.0002,2]
[368146637,1751038250500,-835.24,0.0002,2]
[368146638,1751038250509,-460.0,0.0002,2]
[368146639,1751038250519,-460.0,0.0002,2]
[368146640,1751038250528,-460.0,0.0002,2]
[368146641,1751038250538,-460.0,0.0002,2]
[368146642,1751038250549,-460.0,0.0002,2]
[368146643,1751038250558,-729.15,0.0002,2]
[368146644,1751038250568,-460.0,0.0002,2]
[368146645,1751038250577,-460.0,0.0002,2]
[368146646,1751038250587,-460.0,0.0002,2]
[368146647,1751038250596,-1628.16,0.0002,2]
[368146648,1751038250606,-460.0,0.0002,2]
[368146649,1751038250616,-460.0,0.0002,2]
[368146650,1751038250625,-648.14,0.0002,2]
[368146651,1751038250634,-551.64,0.0002,2]
[368146652,1751038250644,-460.0,0.0002,2]
[368146653,1751038250654,-3080.1,0.0002,2]
[368146654,1751038250663,-460.0,0.0002,2]
[368146655,1751038250673,-460.0,0.0002,2]
[368146656,1751038250682,-460.0,0.0002,2]
[368146657,1751038250691,-460.0,0.0002,2]
[368146658,1751038250701,-3962.82,0.0002,2]
[368146659,1751038250710,-460.0,0.0002,2]
[368146660,1751038250720,-460.0,0.0002,2]
[368146661,1751038250729,-482.95,0.0002,2]
[368146662,1751038250739,-460.0,0.0002,2]
[368146663,1751038250748,-460.0,0.0002,2]
[368146664,1751038250758,-460.0,0.0002,2]
[368146665,1751038250767,-312.95305357,0.0002,2]
[368146666,1751038250776,-2701.86,0.0002,2]
[368146667,1751038250786,-960.06,0.0002,2]
[368146668,1751038250796,-460.0,0.0002,2]
[368146669,1751038250807,-460.0,0.0002,2]
[368146670,1751038250816,-598.88,0.0002,2]
[368146671,1751038250826,-460.0,0.0002,2]
[368146672,1751038250835,-460.0,0.0002,2]
[368146673,1751038250845,-460.0,0.0002,2]
[368146674,1751038250855,-460.0,0.0002,2]
[368146675,1751038250865,-460.0,0.0002,2]
[368146676,1751038250874,-516.39,0.0002,2]
[368146677,1751038250884,-460.0,0.0002,2]
[368146678,1751038250893,-1018.47,0.0002,2]
[368146679,1751038250903,-460.0,0.0002,2]
[368146680,1751038250912,-460.0,0.0002,2]
[368146681,1751038250922,-460.0,0.0002,2]
[368146682,1751038250932,-1550.47,0.0002,2]
[368146683,1751038250942,-460.0,0.0002,2]
[368146684,1751038250951,-460.0,0.0002,2]
[368146685,1751038250960,-460.0,0.0002,2]
[368146686,1751038250970,-460.0,0.0002,2]
[368146687,1751038250979,-460.0,0.0002,2]
[368146688,1751038250988,-1531.61,0.0002,2]
[368146689,1751038250997,-1149.78,0.0002,2]
[368146690,1751038251007,-1081.48,0.0002,2]
[368146691,1751038251016,-460.0,0.0002,2]
[368146692,1751038251025,-460.0,0.0002,2]
[368146693,1751038251034,-584.17,0.0002,2]
[368146694,1751038251043,-460.0,0.0002,2]
[368146695,1751038251055,-460.0,0.0002,2]
[368146696,1751038251065,-460.0,0.0002,2]
[368146697,1751038251076,-4259.37,0.0002,2]
[368146698,1751038251087,-560.02,0.0002,2]
[368146699,1751038251097,-460.0,0.0002,2]
[368146700,1751038251107,-460.0,0.0002,2]
[368146701,1751038251117,-460.0,0.0002,2]
[368146702,1751038251126,-460.0,0.0002,2]
[368146703,1751038251135,-460.0,0.0002,2]
[368146704,1751038251145,-460.0,0.0002,2]
[368146705,1751038251156,-1041.06,0.0002,2]
[368146706,1751038251166,-460.0,0.0002,2]
[368146707,1751038251176,-1937.51,0.0002,2]
[368146708,1751038251185,-550.7,0.0002,2]
[368146709,1751038251194,-460.0,0.0002,2]
[368146710,1751038251204,-3901.22,0.0002,2]
[368146711,1751038251214,-460.0,0.0002,2]
[368146712,1751038251223,-460.0,0.0002,2]
[368146713,1751038251232,-1101.83,0.0002,2]
[368146714,1751038251241,-460.0,0.0002,2]
[368146715,1751038251250,-930.7,0.0002,2]
[368146716,1751038251260,-390.0,0.0002,2]
[368146717,1751038251269,-693.99,0.0002,2]
[368146718,1751038251279,-545.86,0.0002,2]
[368146719,1751038251288,-855.32,0.0002,2]
[368146720,1751038251297,-460.0,0.0002,2]
[368146721,1751038251306,-501.81369713,0.00020021,2]
[368146722,1751038251315,-3475.96140734,0.00020105,2]
[368146723,1751038251325,-4779.0624081,0.00020107,2]
[368146724,1751038251334,-169.01433676,0.00020168,2]
[368146725,1751038251343,-223.05869188,0.00020268,2]
[368146726,1751038251352,-1000.0,0.00020268,2]
[368146727,1751038251362,-500.0,0.00020268,2]
[368146728,1751038251372,-1004.49105772,0.00020268,2]
[368146729,1751038251381,-1102.7981794,0.00020268,2]
[368146730,1751038251390,-733.99,0.00020272,2]
[368146731,1751038251400,-460.0,0.00020273,2]
[368146732,1751038251410,-460.0,0.00020273,2]
[368146733,1751038251419,-460.0,0.00020273,2]
[368146734,1751038251429,-460.0,0.00020273,2]
[368146735,1751038251438,-460.0,0.00020273,2]
[368146736,1751038251447,-460.0,0.00020273,2]
[368146737,1751038251456,-460.0,0.00020273,2]
[368146738,1751038251465,-460.0,0.00020273,2]
[368146739,1751038251475,-460.0,0.00020273,2]
[368146740,1751038251484,-460.0,0.00020273,2]
[368146741,1751038251494,-460.0,0.00020273,2]
[368146742,1751038251503,-460.0,0.00020273,2]
[368146743,1751038251512,-487.3,0.00020273,2]
[368146744,1751038251521,-158.21075791,0.00020273,2]
[368146745,1751038251531,-460.0,0.00020273,2]
[368146746,1751038251540,-460.0,0.00020273,2]
[368146747,1751038251549,-460.0,0.00020273,2]
[368146748,1751038251558,-460.0,0.00020273,2]
[368146749,1751038251567,-460.0,0.00020273,2]
[368146750,1751038251576,-163.47,0.00020273,2]
[368146751,1751038251586,-460.0,0.00020273,2]
[368146752,1751038251595,-441.0166867,0.00020273,2]
[368146753,1751038251604,-460.0,0.00020273,2]
[368146754,1751038251613,-460.0,0.00020273,2]
[368146755,1751038251622,-460.0,0.00020273,2]
[368146756,1751038251635,-460.0,0.00020273,2]
[368146757,1751038251644,-460.0,0.00020273,2]
[368146758,1751038251654,-460.0,0.00020273,2]
[368146759,1751038251664,-460.0,0.00020273,2]
[368146760,1751038251673,-460.0,0.00020273,2]
[368146761,1751038251682,-340.97013817,0.00020273,2]
[368146762,1751038251692,-627.13,0.00020273,2]
[368146763,1751038251701,-460.0,0.00020273,2]
[368146764,1751038251711,-460.0,0.00020273,2]
[368146765,1751038251720,-460.0,0.00020273,2]
[368146766,1751038251729,-493.07,0.00020273,2]
[368146767,1751038251738,-460.0,0.00020273,2]
[368146768,1751038251748,-460.0,0.00020273,2]
[368146769,1751038251757,-460.0,0.00020273,2]
[368146770,1751038251768,-460.0,0.00020273,2]
[368146771,1751038251777,-460.0,0.00020273,2]
[368146772,1751038251787,-361.90059866,0.00020273,2]
[368146773,1751038251796,-460.0,0.00020273,2]
[368146774,1751038251807,-460.0,0.00020273,2]
[368146775,1751038251816,-460.0,0.00020273,2]
[368146776,1751038251826,-1636.33,0.00020273,2]
[368146777,1751038251835,-392.97935569,0.00020273,2]
[368146778,1751038251846,-460.0,0.00020273,2]
[368146779,1751038251855,-312.17935999,0.00020273,2]
[368146780,1751038251864,-460.0,0.00020273,2]
[368146781,1751038251874,-977.32,0.00020273,2]
[368146782,1751038251883,-460.0,0.00020273,2]
[368146783,1751038251892,-460.0,0.00020273,2]
[368146784,1751038251902,-397.79827281,0.00020273,2]
[368146785,1751038251911,-5210.38,0.00020273,2]
[368146786,1751038251921,-958.14,0.00020273,2]
[368146787,1751038251930,-524.72,0.00020273,2]
[368146788,1751038251939,-460.0,0.00020273,2]
[368146789,1751038251948,-3966.91,0.00020273,2]
[368146790,1751038251958,-1083.49,0.00020273,2]
[368146791,1751038251967,-1615.3,0.00020273,2]
[368146792,1751038251976,-460.0,0.00020273,2]
[368146793,1751038251986,-460.0,0.00020273,2]
[368146794,1751038251995,-460.0,0.00020273,2]
[368146795,1751038252004,-460.0,0.00020273,2]
[368146796,1751038252015,-460.0,0.00020273,2]
[368146797,1751038252025,-460.0,0.00020273,2]
[368146798,1751038252035,-460.0,0.00020273,2]
[368146799,1751038252044,-821.81,0.00020273,2]
[368146800,1751038252055,-1051.43,0.00020273,2]
[368146801,1751038252064,-460.0,0.00020273,2]
[368146802,1751038252074,-460.0,0.00020273,2]
[368146803,1751038252087,-460.0,0.00020273,2]
[368146804,1751038252099,-460.0,0.00020273,2]
[368146805,1751038252109,-460.0,0.00020273,2]
[368146806,1751038252119,-493.34,0.00020273,2]
[368146807,1751038252131,-460.0,0.00020273,2]
[368146808,1751038252142,-460.0,0.00020273,2]
[368146809,1751038252151,-5570.99,0.00020273,2]
[368146810,1751038252162,-460.0,0.00020273,2]
[368146811,1751038252173,-460.0,0.00020273,2]
[368146812,1751038252183,-1168.98,0.00020273,2]
[368146813,1751038252193,-460.0,0.00020273,2]
[368146814,1751038252203,-5551.03,0.00020273,2]
[368146815,1751038252212,-460.0,0.00020273,2]
[368146816,1751038252222,-1027.11,0.00020273,2]
[368146817,1751038252232,-460.0,0.00020273,2]
[368146818,1751038252243,-551.17634992,0.00020273,2]
[368146819,1751038252253,-835.24,0.00020273,2]
[368146820,1751038252263,-460.0,0.00020273,2]
[368146821,1751038252272,-460.0,0.00020273,2]
[368146822,1751038252281,-460.0,0.00020273,2]
[368146823,1751038252291,-460.0,0.00020273,2]
[368146824,1751038252302,-460.0,0.00020273,2]
[368146825,1751038252311,-729.15,0.00020273,2]
[368146826,1751038252321,-460.0,0.00020273,2]
[368146827,1751038252332,-460.0,0.00020273,2]
[368146828,1751038252342,-460.0,0.00020273,2]
[368146829,1751038252352,-1628.16,0.00020273,2]
[368146830,1751038252361,-460.0,0.00020273,2]
[368146831,1751038252370,-460.0,0.00020273,2]
[368146832,1751038252381,-648.14,0.00020273,2]
[368146833,1751038252390,-551.64,0.00020273,2]
[368146834,1751038252400,-460.0,0.00020273,2]
[368146835,1751038252410,-3080.1,0.00020273,2]
[368146836,1751038252420,-460.0,0.00020273,2]
[368146837,1751038252429,-460.0,0.00020273,2]
[368146838,1751038252438,-460.0,0.00020273,2]
[368146839,1751038252447,-460.0,0.00020273,2]
[368146840,1751038252551,-3962.82,0.00020273,2]
[368146841,1751038252561,-460.0,0.00020273,2]
[368146842,1751038252571,-460.0,0.00020273,2]
[368146843,1751038252580,-482.95,0.00020273,2]
[368146844,1751038252589,-462.67557785,0.00020273,2]
[368146845,1751038252598,-460.0,0.00020273,2]
[368146846,1751038252608,-460.0,0.00020273,2]
[368146847,1751038252617,-2701.86,0.00020273,2]
[368146848,1751038252626,-960.06,0.00020273,2]
[368146849,1751038252636,-460.0,0.00020273,2]
[368146850,1751038252646,-460.0,0.00020273,2]
[368146851,1751038252655,-598.88,0.00020273,2]
[368146852,1751038252665,-460.0,0.00020273,2]
[368146853,1751038252675,-460.0,0.00020273,2]
[368146854,1751038252689,-460.0,0.00020273,2]
[368146855,1751038252699,-460.0,0.00020273,2]
[368146856,1751038252709,-460.0,0.00020273,2]
[368146857,1751038252719,-516.39,0.00020273,2]
[368146858,1751038252728,-460.0,0.00020273,2]
[368146859,1751038252739,-1018.47,0.00020273,2]
[368146860,1751038252749,-460.0,0.00020273,2]
[368146861,1751038252759,-380.0,0.00020273,2]
[368146862,1751038252768,-460.0,0.00020273,2]
[368146863,1751038252778,-1550.47,0.00020273,2]
[368146864,1751038252788,-460.0,0.00020273,2]
[368146865,1751038252797,-460.0,0.00020273,2]
[368146866,1751038252807,-460.0,0.00020273,2]
[368146867,1751038252816,-460.0,0.00020273,2]
[368146868,1751038252826,-460.0,0.00020273,2]
[368146869,1751038252836,-1531.61,0.00020273,2]
[368146870,1751038252846,-1149.78,0.00020273,2]
[368146871,1751038252856,-1081.48,0.00020273,2]
[368146872,1751038252866,-460.0,0.00020273,2]
[368146873,1751038252876,-460.0,0.00020273,2]
[368146874,1751038252886,-584.17,0.00020273,2]
[368146875,1751038252896,-460.0,0.00020273,2]
[368146876,1751038252905,-460.0,0.00020273,2]
[368146877,1751038252915,-460.0,0.00020273,2]
[368146878,1751038252925,-4259.37,0.00020273,2]
[368146879,1751038252934,-560.02,0.00020273,2]
[368146880,1751038252946,-460.0,0.00020273,2]
[368146881,1751038252955,-460.0,0.00020273,2]
[368146882,1751038252964,-460.0,0.00020273,2]
[368146883,1751038252974,-227.21800923,0.00020273,2]
[368146884,1751038252984,-460.0,0.00020273,2]
[368146885,1751038252994,-460.0,0.00020273,2]
[368146886,1751038253004,-1041.06,0.00020273,2]
[368146887,1751038253013,-460.0,0.00020273,2]
[368146888,1751038253023,-1937.51,0.00020273,2]
[368146889,1751038253033,-550.7,0.00020273,2]
[368146890,1751038253043,-460.0,0.00020273,2]
[368146891,1751038253052,-3901.22,0.00020273,2]
[368146892,1751038253061,-460.0,0.00020273,2]
[368146893,1751038253070,-460.0,0.00020273,2]
[368146894,1751038253081,-1101.83,0.00020273,2]
[368146895,1751038253090,-460.0,0.00020273,2]
[368146896,1751038253100,-930.7,0.00020273,2]
[368146897,1751038253109,-693.99,0.00020273,2]
[368146898,1751038253119,-545.86,0.00020273,2]
[368146899,1751038253131,-855.32,0.00020273,2]
[368146900,1751038253142,-460.0,0.00020273,2]
[368146901,1751038253152,-151.0,0.000203,3]
[368146902,1751038253164,-4779.0624081,0.00020314,3]
[368146903,1751038253175,-261.18450204,0.0002036,2]
[368146904,1751038253185,-3475.96140734,0.00020447,2]
[368146905,1751038253195,-478.84913896,0.00020469,2]
[368146906,1751038253204,-151.0,0.000205,3]
[368146907,1751038253215,-4779.0624081,0.00020521,3]
[368146908,1751038253224,-12562.41216491,0.00020521,3]
[368146909,1751038253234,-160.0,0.00020521,3]
[368146910,1751038253243,-349.36,0.00020538,3]
[368146911,1751038253252,-733.99,0.00020545,2]
[368146912,1751038253261,-733.99,0.00020546,2]
[368146913,1751038253270,-733.99,0.00020546,2]
[368146914,1751038253279,-733.99,0.00020546,2]
[368146915,1751038253289,-733.99,0.00020546,2]
[368146916,1751038253298,-734.10292804,0.00020546,2]
[368146917,1751038253308,-307.42,0.00020547,2]
[368146918,1751038253318,-460.0,0.00020547,2]
[368146919,1751038253327,-460.0,0.00020547,2]
[368146920,1751038253336,-207.81477606,0.00020547,2]
[368146921,1751038253345,-460.0,0.00020547,2]
[368146922,1751038253355,-460.0,0.00020547,2]
[368146923,1751038253364,-460.0,0.00020547,2]
[368146924,1751038253376,-576.56,0.00020547,2]
[368146925,1751038253385,-460.0,0.00020547,2]
[368146926,1751038253395,-460.0,0.00020547,2]
[368146927,1751038253406,-460.0,0.00020547,2]
[368146928,1751038253415,-487.3,0.00020547,2]
[368146929,1751038253424,-325.55,0.00020547,2]
[368146930,1751038253434,-460.0,0.00020547,2]
[368146931,1751038253443,-460.0,0.00020547,2]
[368146932,1751038253452,-460.0,0.00020547,2]
[368146933,1751038253461,-460.0,0.00020547,2]
[368146934,1751038253471,-460.0,0.00020547,2]
[368146935,1751038253480,-460.0,0.00020547,2]
[368146936,1751038253490,-460.0,0.00020547,2]
[368146937,1751038253499,-460.0,0.00020547,2]
[368146938,1751038253508,-460.0,0.00020547,2]
[368146939,1751038253517,-460.0,0.00020547,2]
[368146940,1751038253526,-460.0,0.00020547,2]
[368146941,1751038253536,-460.0,0.00020547,2]
[368146942,1751038253545,-627.13,0.00020547,2]
[368146943,1751038253555,-156.17327471,0.00020547,2]
[368146944,1751038253564,-460.0,0.00020547,2]
[368146945,1751038253573,-353.14510899,0.00020547,2]
[368146946,1751038253582,-493.07,0.00020547,2]
[368146947,1751038253591,-524.56,0.00020547,2]
[368146948,1751038253601,-460.0,0.00020547,2]
[368146949,1751038253610,-460.0,0.00020547,2]
[368146950,1751038253620,-460.0,0.00020547,2]
[368146951,1751038253629,-460.0,0.00020547,2]
[368146952,1751038253639,-460.0,0.00020547,2]
[368146953,1751038253648,-460.0,0.00020547,2]
[368146954,1751038253658,-460.0,0.00020547,2]
[368146955,1751038253667,-1636.33,0.00020547,2]
[368146956,1751038253677,-460.0,0.00020547,2]
[368146957,1751038253686,-460.0,0.00020547,2]
[368146958,1751038253695,-977.32,0.00020547,2]
[368146959,1751038253706,-460.0,0.00020547,2]
[368146960,1751038253715,-489.32333107,0.00020547,2]
[368146961,1751038253725,-5210.38,0.00020547,2]
[368146962,1751038253734,-958.14,0.00020547,2]
[368146963,1751038253744,-524.72,0.00020547,2]
[368146964,1751038253753,-460.0,0.00020547,2]
[368146965,1751038253763,-3966.91,0.00020547,2]
[368146966,1751038253772,-1083.49,0.00020547,2]
[368146967,1751038253782,-1615.3,0.00020547,2]
[368146968,1751038253791,-460.0,0.00020547,2]
[368146969,1751038253801,-460.0,0.00020547,2]
[368146970,1751038253811,-460.0,0.00020547,2]
[368146971,1751038253820,-460.0,0.00020547,2]
[368146972,1751038253830,-460.0,0.00020547,2]
[368146973,1751038253839,-460.0,0.00020547,2]
[368146974,1751038253848,-821.81,0.00020547,2]
[368146975,1751038253858,-1051.43,0.00020547,2]
[368146976,1751038253868,-460.0,0.00020547,2]
[368146977,1751038253878,-460.0,0.00020547,2]
[368146978,1751038253888,-460.0,0.00020547,2]
[368146979,1751038253898,-460.0,0.00020547,2]
[368146980,1751038253908,-460.0,0.00020547,2]
[368146981,1751038253917,-493.34,0.00020547,2]
[368146982,1751038253927,-460.0,0.00020547,2]
[368146983,1751038253936,-460.0,0.00020547,2]
[368146984,1751038253945,-5570.99,0.00020547,2]
[368146985,1751038253955,-608.39,0.00020547,2]
[368146986,1751038253964,-460.0,0.00020547,2]
[368146987,1751038253973,-1168.98,0.00020547,2]
[368146988,1751038253982,-460.0,0.00020547,2]
[368146989,1751038253991,-5551.03,0.00020547,2]
[368146990,1751038254000,-460.0,0.00020547,2]
[368146991,1751038254009,-1027.11,0.00020547,2]
[368146992,1751038254019,-460.0,0.00020547,2]
[368146993,1751038254028,-835.24,0.00020547,2]
[368146994,1751038254037,-460.0,0.00020547,2]
[368146995,1751038254047,-460.0,0.00020547,2]
[368146996,1751038254058,-460.0,0.00020547,2]
[368146997,1751038254067,-460.0,0.00020547,2]
[368146998,1751038254077,-460.0,0.00020547,2]
[368146999,1751038254089,-729.15,0.00020547,2]
[368147000,1751038254099,-460.0,0.00020547,2]
[368147001,1751038254108,-460.0,0.00020547,2]
[368147002,1751038254117,-460.0,0.00020547,2]
[368147003,1751038254128,-1628.16,0.00020547,2]
[368147004,1751038254137,-460.0,0.00020547,2]
[368147005,1751038254147,-460.0,0.00020547,2]
[368147006,1751038254158,-648.14,0.00020547,2]
[368147007,1751038254167,-551.64,0.00020547,2]
[368147008,1751038254177,-460.0,0.00020547,2]
[368147009,1751038254186,-3080.1,0.00020547,2]
[368147010,1751038254195,-460.0,0.00020547,2]
[368147011,1751038254204,-460.0,0.00020547,2]
[368147012,1751038254215,-460.0,0.00020547,2]
[368147013,1751038254224,-460.0,0.00020547,2]
[368147014,1751038254234,-3962.82,0.00020547,2]
[368147015,1751038254243,-419.05928685,0.00020547,2]
[368147016,1751038254252,-460.0,0.00020547,2]
[368147017,1751038254261,-482.95,0.00020547,2]
[368147018,1751038254271,-460.0,0.00020547,2]
[368147019,1751038254280,-460.0,0.00020547,2]
[368147020,1751038254289,-2701.86,0.00020547,2]
[368147021,1751038254298,-960.06,0.00020547,2]
[368147022,1751038254309,-460.0,0.00020547,2]
[368147023,1751038254318,-460.0,0.00020547,2]
[368147024,1751038254327,-598.88,0.00020547,2]
[368147025,1751038254336,-460.0,0.00020547,2]
[368147026,1751038254345,-460.0,0.00020547,2]